[Event "November 21 Early 2023"]
[Site "https://www.chess.com"]
[Date "2023.11.21"]
[Round "2"]
[White "Gubajdullin, Alexei"]
[Black "Drygalov, Sergey"]
[Result "0-1"]
[Board "27"]
[TimeControl "180+1"]
[WhiteFideId "4141202"]
[BlackFideId "24171743"]
[WhiteElo "2280"]
[BlackElo "2502"]
[WhiteTeam "RUS"]
[BlackTeam "RUS"]
[WhiteClock "0:00:09"]
[BlackClock "0:00:14"]

1. d4 {[%clk 0:03:00]}  Nf6 {[%clk 0:03:00]} 2. Nf3 {[%clk 0:02:59]}  g6 {[%clk 0:02:58]} 3. Bf4 {[%clk 0:03:00]}  Bg7 {[%clk 0:02:57]} 4. e3 {[%clk 0:03:00]}  O-O {[%clk 0:02:57]} 5. Be2 {[%clk 0:03:00]}  b6 {[%clk 0:02:57]} 6. O-O {[%clk 0:03:00]}  Bb7 {[%clk 0:02:58]} 7. h3 {[%clk 0:03:00]}  d6 {[%clk 0:02:58]} 8. a4 {[%clk 0:03:00]}  a6 {[%clk 0:02:58]} 9. a5 {[%clk 0:03:00]}  b5 {[%clk 0:02:58]} 10. c4 {[%clk 0:03:00]}  c6 {[%clk 0:02:48]} 11. Nc3 {[%clk 0:02:57]}  Nbd7 {[%clk 0:02:48]} 12. b4 {[%clk 0:02:53]}  bxc4 {[%clk 0:02:29]} 13. Bxc4 {[%clk 0:02:52]}  c5 {[%clk 0:02:29]} 14. bxc5 {[%clk 0:02:47]}  dxc5 {[%clk 0:02:29]} 15. Qb3 {[%clk 0:02:11]}  Bxf3 {[%clk 0:02:27]} 16. gxf3 {[%clk 0:02:10]}  cxd4 {[%clk 0:02:27]} 17. exd4 {[%clk 0:02:10]}  e6 {[%clk 0:02:20]} 18. Bd6 {[%clk 0:02:05]}  Re8 {[%clk 0:02:19]} 19. d5 {[%clk 0:02:05]}  e5 {[%clk 0:01:58]} 20. Ne4 {[%clk 0:01:58]}  Nh5 {[%clk 0:01:58]} 21. Rfd1 {[%clk 0:01:40]}  Nf4 {[%clk 0:01:49]} 22. Bf1 {[%clk 0:01:40]}  f5 {[%clk 0:01:33]} 23. Nc5 {[%clk 0:01:31]}  Nf6 {[%clk 0:01:19]} 24. Qb6 {[%clk 0:01:30]}  N6xd5 {[%clk 0:01:06]} 25. Rxd5 {[%clk 0:01:14]}  Nxd5 {[%clk 0:00:39]} 26. Bc4 {[%clk 0:01:14]}  Qg5+ {[%clk 0:00:34]} 27. Kh1 {[%clk 0:01:13]}  Kh8 {[%clk 0:00:30]} 28. Bxd5 {[%clk 0:01:12]}  Rad8 {[%clk 0:00:22]} 29. Ne6 {[%clk 0:01:12]}  Qf6 {[%clk 0:00:22]} 30. Nxd8 {[%clk 0:01:10]}  Rxd8 {[%clk 0:00:21]} 31. Rc1 {[%clk 0:01:01]}  Rxd6 {[%clk 0:00:20]} 32. Rc8+ {[%clk 0:00:55]}  Bf8 {[%clk 0:00:20]} 33. Qc5 {[%clk 0:00:44]}  Rd8 {[%clk 0:00:16]} 34. Rxd8 {[%clk 0:00:37]}  Qxd8 {[%clk 0:00:17]} 35. Qc6 {[%clk 0:00:37]}  Kg7 {[%clk 0:00:17]} 36. Qb7+ {[%clk 0:00:35]}  Be7 {[%clk 0:00:15]} 37. Kg2 {[%clk 0:00:34]}  Kh6 {[%clk 0:00:15]} 38. Bc4 {[%clk 0:00:33]}  Bc5 {[%clk 0:00:14]} 39. Qxa6 {[%clk 0:00:27]}  Qd4 {[%clk 0:00:14]} 40. h4 {[%clk 0:00:17]}  Qxf2+ {[%clk 0:00:15]} 41. Kh3 {[%clk 0:00:18]}  Qxf3+ {[%clk 0:00:15]} 42. Kh2 {[%clk 0:00:18]}  Qf2+ {[%clk 0:00:16]} 43. Kh3 {[%clk 0:00:09]}  f4 {[%clk 0:00:14]} 0-1

[Event "November 21 Early 2023"]
[Site "https://www.chess.com"]
[Date "2023.11.21"]
[Round "2"]
[White "Makarian, Rudik"]
[Black "Cremisi, Daniel"]
[Result "1-0"]
[Board "28"]
[TimeControl "180+1"]
[WhiteFideId "44105681"]
[BlackFideId "2089882"]
[WhiteElo "2539"]
[BlackElo "2172"]
[WhiteTeam "FID"]
[BlackTeam "USA"]
[WhiteClock "0:00:24"]
[BlackClock "0:00:01"]

1. d4 {[%clk 0:03:00]}  d5 {[%clk 0:02:59]} 2. c4 {[%clk 0:03:00]}  c6 {[%clk 0:02:59]} 3. Nf3 {[%clk 0:03:00]}  Nf6 {[%clk 0:02:59]} 4. Nc3 {[%clk 0:03:00]}  e6 {[%clk 0:02:59]} 5. Bg5 {[%clk 0:03:00]}  Nbd7 {[%clk 0:02:59]} 6. e3 {[%clk 0:03:00]}  Qa5 {[%clk 0:02:59]} 7. Nd2 {[%clk 0:03:00]}  Bb4 {[%clk 0:02:56]} 8. Rc1 {[%clk 0:02:59]}  dxc4 {[%clk 0:02:53]} 9. Bxf6 {[%clk 0:02:57]}  Nxf6 {[%clk 0:02:51]} 10. Nxc4 {[%clk 0:02:58]}  Bxc3+ {[%clk 0:02:51]} 11. Rxc3 {[%clk 0:02:50]}  Qc7 {[%clk 0:02:50]} 12. Be2 {[%clk 0:02:50]}  O-O {[%clk 0:02:50]} 13. O-O {[%clk 0:02:50]}  Nd5 {[%clk 0:02:50]} 14. Rc1 {[%clk 0:02:50]}  Nb6 {[%clk 0:02:51]} 15. Ne5 {[%clk 0:02:48]}  Nd7 {[%clk 0:02:50]} 16. Nd3 {[%clk 0:02:46]}  Nb6 {[%clk 0:02:44]} 17. Qc2 {[%clk 0:02:43]}  Bd7 {[%clk 0:02:43]} 18. Bf3 {[%clk 0:02:42]}  Rfc8 {[%clk 0:02:43]} 19. Rfd1 {[%clk 0:02:42]}  Be8 {[%clk 0:02:43]} 20. b4 {[%clk 0:02:37]}  Qe7 {[%clk 0:02:42]} 21. Qc5 {[%clk 0:02:33]}  Qxc5 {[%clk 0:02:42]} 22. bxc5 {[%clk 0:02:28]}  Nd5 {[%clk 0:02:39]} 23. Ne5 {[%clk 0:02:25]}  b5 {[%clk 0:02:33]} 24. a3 {[%clk 0:01:59]}  a5 {[%clk 0:02:31]} 25. Rd2 {[%clk 0:01:54]}  f6 {[%clk 0:02:27]} 26. Nd3 {[%clk 0:01:54]}  Bg6 {[%clk 0:02:27]} 27. e4 {[%clk 0:01:45]}  Nc7 {[%clk 0:02:27]} 28. Nf4 {[%clk 0:01:44]}  Bf7 {[%clk 0:02:25]} 29. e5 {[%clk 0:01:43]}  fxe5 {[%clk 0:02:25]} 30. dxe5 {[%clk 0:01:43]}  Nd5 {[%clk 0:02:25]} 31. Bxd5 {[%clk 0:01:40]}  cxd5 {[%clk 0:02:25]} 32. Ne2 {[%clk 0:01:38]}  b4 {[%clk 0:02:23]} 33. axb4 {[%clk 0:01:25]}  axb4 {[%clk 0:02:24]} 34. f3 {[%clk 0:01:21]}  Ra5 {[%clk 0:02:20]} 35. c6 {[%clk 0:01:19]}  d4 {[%clk 0:01:55]} 36. Rxd4 {[%clk 0:01:11]}  Rxe5 {[%clk 0:01:51]} 37. c7 {[%clk 0:01:11]}  Rd5 {[%clk 0:01:06]} 38. Rxb4 {[%clk 0:01:09]}  Be8 {[%clk 0:01:06]} 39. Rb8 {[%clk 0:01:07]}  Bd7 {[%clk 0:01:06]} 40. Kf2 {[%clk 0:01:05]}  Kf7 {[%clk 0:01:04]} 41. Ke3 {[%clk 0:01:04]}  Ke7 {[%clk 0:01:04]} 42. Rxc8 {[%clk 0:01:02]}  Bxc8 {[%clk 0:01:04]} 43. Nf4 {[%clk 0:01:00]}  Re5+ {[%clk 0:00:53]} 44. Kf2 {[%clk 0:00:56]}  Kd6 {[%clk 0:00:49]} 45. h4 {[%clk 0:00:55]}  Ra5 {[%clk 0:00:40]} 46. Rc2 {[%clk 0:00:47]}  Ra7 {[%clk 0:00:38]} 47. Nh5 {[%clk 0:00:47]}  g6 {[%clk 0:00:20]} 48. Nf6 {[%clk 0:00:46]}  h5 {[%clk 0:00:20]} 49. Kg3 {[%clk 0:00:39]}  Ke7 {[%clk 0:00:19]} 50. Ne4 {[%clk 0:00:38]}  Kd7 {[%clk 0:00:19]} 51. Kf4 {[%clk 0:00:37]}  Ra5 {[%clk 0:00:16]} 52. Rc5 {[%clk 0:00:28]}  Ra2 {[%clk 0:00:14]} 53. Rg5 {[%clk 0:00:27]}  Kxc7 {[%clk 0:00:07]} 54. Rxg6 {[%clk 0:00:27]}  Ra1 {[%clk 0:00:07]} 55. Rg5 {[%clk 0:00:27]}  Rg1 {[%clk 0:00:06]} 56. Kg3 {[%clk 0:00:27]}  Ba6 {[%clk 0:00:05]} 57. Rxh5 {[%clk 0:00:24]}  Bf1 {[%clk 0:00:05]} 58. Kf2 {[%clk 0:00:24]}  Rh1 {[%clk 0:00:01]} 59. Ng3 {[%clk 0:00:24]} 1-0

[Event "November 21 Early 2023"]
[Site "https://www.chess.com"]
[Date "2023.11.21"]
[Round "2"]
[White "Stark, Lars"]
[Black "Rasulov, Vugar"]
[Result "0-1"]
[Board "29"]
[TimeControl "180+1"]
[WhiteFideId "4676386"]
[BlackFideId "13402390"]
[WhiteElo "2449"]
[BlackElo "2517"]
[WhiteTeam "GER"]
[BlackTeam "AZE"]
[WhiteClock "0:00:00"]
[BlackClock "0:01:00"]

1. c4 {[%clk 0:03:00]}  Nf6 {[%clk 0:02:59]} 2. g3 {[%clk 0:03:01]}  e6 {[%clk 0:02:58]} 3. Bg2 {[%clk 0:03:01]}  d5 {[%clk 0:02:57]} 4. Nf3 {[%clk 0:03:02]}  Be7 {[%clk 0:02:56]} 5. O-O {[%clk 0:03:02]}  d4 {[%clk 0:02:55]} 6. b3 {[%clk 0:03:03]}  O-O {[%clk 0:02:54]} 7. e3 {[%clk 0:03:03]}  c5 {[%clk 0:02:54]} 8. Ba3 {[%clk 0:03:02]}  Nc6 {[%clk 0:02:52]} 9. Re1 {[%clk 0:03:01]}  e5 {[%clk 0:02:48]} 10. exd4 {[%clk 0:03:00]}  exd4 {[%clk 0:02:48]} 11. d3 {[%clk 0:02:58]}  Bd6 {[%clk 0:02:47]} 12. Nbd2 {[%clk 0:02:56]}  Bf5 {[%clk 0:02:47]} 13. Ne4 {[%clk 0:02:55]}  Nxe4 {[%clk 0:02:38]} 14. dxe4 {[%clk 0:02:55]}  Bg6 {[%clk 0:02:36]} 15. Nh4 {[%clk 0:02:53]}  Re8 {[%clk 0:02:33]} 16. Nxg6 {[%clk 0:02:47]}  hxg6 {[%clk 0:02:34]} 17. Qd2 {[%clk 0:02:47]}  a5 {[%clk 0:02:31]} 18. f4 {[%clk 0:02:43]}  a4 {[%clk 0:02:31]} 19. e5 {[%clk 0:02:41]}  Bf8 {[%clk 0:02:30]} 20. Bxc6 {[%clk 0:02:30]}  bxc6 {[%clk 0:02:30]} 21. Qd3 {[%clk 0:02:31]}  axb3 {[%clk 0:02:29]} 22. axb3 {[%clk 0:02:31]}  Qd7 {[%clk 0:02:20]} 23. Reb1 {[%clk 0:02:27]}  g5 {[%clk 0:02:11]} 24. Bc1 {[%clk 0:02:25]}  gxf4 {[%clk 0:02:11]} 25. Bxf4 {[%clk 0:02:24]}  g6 {[%clk 0:01:59]} 26. Rxa8 {[%clk 0:02:02]}  Rxa8 {[%clk 0:02:00]} 27. Re1 {[%clk 0:01:55]}  Qe6 {[%clk 0:01:58]} 28. Re2 {[%clk 0:01:27]}  Bg7 {[%clk 0:01:51]} 29. Kg2 {[%clk 0:01:24]}  Ra1 {[%clk 0:01:47]} 30. h3 {[%clk 0:01:17]}  Kh7 {[%clk 0:01:39]} 31. Kh2 {[%clk 0:01:17]}  Qc8 {[%clk 0:01:35]} 32. Kg2 {[%clk 0:01:14]}  Qe6 {[%clk 0:01:23]} 33. Kh2 {[%clk 0:01:14]}  Bh6 {[%clk 0:01:23]} 34. Kg2 {[%clk 0:01:12]}  Bxf4 {[%clk 0:01:21]} 35. gxf4 {[%clk 0:01:12]}  Kg7 {[%clk 0:01:22]} 36. Kg3 {[%clk 0:01:07]}  Rc1 {[%clk 0:01:16]} 37. Rc2 {[%clk 0:00:00]}  Rxc2 {[%clk 0:01:00]} 0-1

[Event "November 21 Early 2023"]
[Site "https://www.chess.com"]
[Date "2023.11.21"]
[Round "2"]
[White "Chigaev, Maksim"]
[Black "Manukian, Artak"]
[Result "1-0"]
[Board "30"]
[TimeControl "180+1"]
[WhiteFideId "4108116"]
[BlackFideId "13301373"]
[WhiteElo "2561"]
[BlackElo "2030"]
[WhiteTeam "ESP"]
[BlackTeam "ARM"]
[WhiteClock "0:00:36"]
[BlackClock "0:00:33"]

1. d4 {[%clk 0:03:00]}  Nf6 {[%clk 0:02:45]} 2. Nf3 {[%clk 0:02:59]}  d5 {[%clk 0:02:45]} 3. g3 {[%clk 0:02:59]}  Bf5 {[%clk 0:02:43]} 4. Bg2 {[%clk 0:02:55]}  e6 {[%clk 0:02:38]} 5. c4 {[%clk 0:02:55]}  c6 {[%clk 0:02:33]} 6. Nc3 {[%clk 0:02:54]}  Nbd7 {[%clk 0:02:32]} 7. Qb3 {[%clk 0:02:41]}  Qb6 {[%clk 0:02:30]} 8. c5 {[%clk 0:02:42]}  Qxb3 {[%clk 0:02:30]} 9. axb3 {[%clk 0:02:43]}  a6 {[%clk 0:02:30]} 10. b4 {[%clk 0:02:43]}  Rc8 {[%clk 0:02:30]} 11. Nd2 {[%clk 0:02:44]}  Be7 {[%clk 0:02:29]} 12. Nb3 {[%clk 0:02:44]}  Bd8 {[%clk 0:02:29]} 13. h3 {[%clk 0:02:45]}  h5 {[%clk 0:02:20]} 14. Bf4 {[%clk 0:02:40]}  O-O {[%clk 0:02:14]} 15. Na5 {[%clk 0:02:32]}  Bxa5 {[%clk 0:02:13]} 16. Rxa5 {[%clk 0:02:33]}  Rfe8 {[%clk 0:02:11]} 17. Be5 {[%clk 0:02:06]}  Nxe5 {[%clk 0:02:08]} 18. dxe5 {[%clk 0:02:06]}  Nd7 {[%clk 0:02:06]} 19. f4 {[%clk 0:02:06]}  f6 {[%clk 0:02:04]} 20. exf6 {[%clk 0:01:59]}  gxf6 {[%clk 0:02:05]} 21. e4 {[%clk 0:01:58]}  dxe4 {[%clk 0:02:04]} 22. Nxe4 {[%clk 0:01:59]}  Bxe4 {[%clk 0:02:02]} 23. Bxe4 {[%clk 0:02:00]}  e5 {[%clk 0:01:57]} 24. f5 {[%clk 0:01:43]}  Kg7 {[%clk 0:01:50]} 25. Ke2 {[%clk 0:01:38]}  Nf8 {[%clk 0:01:47]} 26. Ra3 {[%clk 0:01:33]}  Rcd8 {[%clk 0:01:46]} 27. b5 {[%clk 0:01:13]}  axb5 {[%clk 0:01:43]} 28. Ra7 {[%clk 0:01:13]}  Rd7 {[%clk 0:01:44]} 29. Rd1 {[%clk 0:01:13]}  Rxd1 {[%clk 0:01:36]} 30. Kxd1 {[%clk 0:01:13]}  Rd8+ {[%clk 0:01:36]} 31. Ke2 {[%clk 0:01:13]}  Rd7 {[%clk 0:01:36]} 32. h4 {[%clk 0:01:04]}  Kh6 {[%clk 0:01:26]} 33. Ke3 {[%clk 0:01:01]}  Rg7 {[%clk 0:01:15]} 34. Kf2 {[%clk 0:01:00]}  Nd7 {[%clk 0:01:14]} 35. b4 {[%clk 0:00:55]}  Nf8 {[%clk 0:01:07]} 36. Ra8 {[%clk 0:00:54]}  Rf7 {[%clk 0:00:59]} 37. Bc2 {[%clk 0:00:44]}  Nh7 {[%clk 0:00:50]} 38. Rd8 {[%clk 0:00:42]}  Re7 {[%clk 0:00:44]} 39. Bb3 {[%clk 0:00:37]}  Kg7 {[%clk 0:00:33]} 40. Rg8+ {[%clk 0:00:36]} 1-0

[Event "November 21 Early 2023"]
[Site "https://www.chess.com"]
[Date "2023.11.21"]
[Round "2"]
[White "Vestby-Ellingsen, Mads"]
[Black "Zhigalko, Sergei"]
[Result "0-1"]
[Board "31"]
[TimeControl "180+1"]
[WhiteFideId "1520857"]
[BlackFideId "13502956"]
[WhiteElo "2241"]
[BlackElo "2616"]
[WhiteTeam "NOR"]
[BlackTeam "BLR"]
[WhiteClock "0:00:00"]
[BlackClock "0:00:45"]

1. e4 {[%clk 0:03:00]}  c5 {[%clk 0:02:59]} 2. Nf3 {[%clk 0:03:01]}  Nc6 {[%clk 0:02:59]} 3. c3 {[%clk 0:03:00]}  Nf6 {[%clk 0:02:59]} 4. Bd3 {[%clk 0:02:59]}  e5 {[%clk 0:02:51]} 5. O-O {[%clk 0:02:58]}  d5 {[%clk 0:02:35]} 6. exd5 {[%clk 0:02:52]}  Qxd5 {[%clk 0:02:34]} 7. Bb5 {[%clk 0:02:45]}  Bg4 {[%clk 0:02:34]} 8. Re1 {[%clk 0:02:37]}  Bd6 {[%clk 0:02:26]} 9. Na3 {[%clk 0:02:26]}  e4 {[%clk 0:01:51]} 10. d3 {[%clk 0:02:05]}  O-O-O {[%clk 0:01:50]} 11. h3 {[%clk 0:00:32]}  Bxf3 {[%clk 0:01:23]} 12. gxf3 {[%clk 0:00:30]}  exf3 {[%clk 0:01:24]} 13. Qa4 {[%clk 0:00:19]}  Qh5 {[%clk 0:00:59]} 14. h4 {[%clk 0:00:19]}  Qf5 {[%clk 0:00:50]} 15. Bxc6 {[%clk 0:00:06]}  Qh3 {[%clk 0:00:45]} 16. Bxb7+ {[%clk 0:00:00]}  Kb8 {[%clk 0:00:45]} 0-1

[Event "November 21 Early 2023"]
[Site "https://www.chess.com"]
[Date "2023.11.21"]
[Round "2"]
[White "WindWhistler11"]
[Black "Ashraf, Artin"]
[Result "0-1"]
[Board "33"]
[TimeControl "180+1"]
[BlackFideId "22514805"]
[WhiteElo "2587"]
[BlackElo "2235"]
[BlackTeam "IRI"]
[WhiteClock "0:00:01"]
[BlackClock "0:00:02"]

1. Nf3 {[%clk 0:03:00]}  Nf6 {[%clk 0:02:53]} 2. b3 {[%clk 0:02:58]}  a5 {[%clk 0:02:49]} 3. Bb2 {[%clk 0:02:56]}  a4 {[%clk 0:02:49]} 4. Na3 {[%clk 0:02:56]}  e6 {[%clk 0:02:40]} 5. e3 {[%clk 0:02:46]}  b6 {[%clk 0:02:33]} 6. c4 {[%clk 0:02:40]}  Bb7 {[%clk 0:02:28]} 7. Be2 {[%clk 0:02:32]}  Bb4 {[%clk 0:02:23]} 8. Qc1 {[%clk 0:02:26]}  O-O {[%clk 0:02:19]} 9. Nc2 {[%clk 0:02:13]}  Be7 {[%clk 0:02:18]} 10. b4 {[%clk 0:02:13]}  c5 {[%clk 0:02:14]} 11. a3 {[%clk 0:01:59]}  Nc6 {[%clk 0:02:13]} 12. Bc3 {[%clk 0:01:43]}  Ne4 {[%clk 0:02:11]} 13. O-O {[%clk 0:01:19]}  Nxc3 {[%clk 0:01:53]} 14. dxc3 {[%clk 0:01:19]}  Qc7 {[%clk 0:01:53]} 15. Rd1 {[%clk 0:01:11]}  Rfd8 {[%clk 0:01:52]} 16. e4 {[%clk 0:00:59]}  Ne5 {[%clk 0:01:43]} 17. Qe3 {[%clk 0:00:46]}  Ng4 {[%clk 0:01:25]} 18. Qd3 {[%clk 0:00:45]}  Ne5 {[%clk 0:01:15]} 19. Qe3 {[%clk 0:00:37]}  Bf6 {[%clk 0:01:15]} 20. h3 {[%clk 0:00:24]}  cxb4 {[%clk 0:01:09]} 21. Nxe5 {[%clk 0:00:24]}  b3 {[%clk 0:01:06]} 22. Ng4 {[%clk 0:00:22]}  bxc2 {[%clk 0:00:58]} 23. Nxf6+ {[%clk 0:00:22]}  gxf6 {[%clk 0:00:58]} 24. Rd2 {[%clk 0:00:23]}  Qc5 {[%clk 0:00:58]} 25. Qg3+ {[%clk 0:00:22]}  Qg5 {[%clk 0:00:58]} 26. Qxg5+ {[%clk 0:00:20]}  fxg5 {[%clk 0:00:58]} 27. Rxc2 {[%clk 0:00:21]}  Bxe4 {[%clk 0:00:58]} 28. Rb2 {[%clk 0:00:22]}  Rdb8 {[%clk 0:00:52]} 29. Rb4 {[%clk 0:00:16]}  Bc2 {[%clk 0:00:47]} 30. Bd1 {[%clk 0:00:14]}  Bxd1 {[%clk 0:00:43]} 31. Rxd1 {[%clk 0:00:15]}  Ra7 {[%clk 0:00:44]} 32. Rd6 {[%clk 0:00:16]}  Rc7 {[%clk 0:00:43]} 33. Rxa4 {[%clk 0:00:15]}  Kf8 {[%clk 0:00:36]} 34. Rb4 {[%clk 0:00:14]}  Ke7 {[%clk 0:00:34]} 35. Rdxb6 {[%clk 0:00:13]}  Rxb6 {[%clk 0:00:34]} 36. Rxb6 {[%clk 0:00:13]}  Rxc4 {[%clk 0:00:34]} 37. Rb3 {[%clk 0:00:14]}  h5 {[%clk 0:00:30]} 38. Kf1 {[%clk 0:00:14]}  h4 {[%clk 0:00:24]} 39. Ke1 {[%clk 0:00:14]}  g4 {[%clk 0:00:22]} 40. Kd2 {[%clk 0:00:11]}  gxh3 {[%clk 0:00:18]} 41. gxh3 {[%clk 0:00:12]}  Ra4 {[%clk 0:00:18]} 42. Kc2 {[%clk 0:00:07]}  Rf4 {[%clk 0:00:17]} 43. Kb1 {[%clk 0:00:05]}  Rxf2 {[%clk 0:00:14]} 44. a4 {[%clk 0:00:05]}  Rf5 {[%clk 0:00:10]} 45. Ra3 {[%clk 0:00:05]}  Ra5 {[%clk 0:00:09]} 46. Kb2 {[%clk 0:00:05]}  Kd6 {[%clk 0:00:09]} 47. Kb3 {[%clk 0:00:05]}  Kc5 {[%clk 0:00:10]} 48. Ra2 {[%clk 0:00:05]}  f5 {[%clk 0:00:10]} 49. Rf2 {[%clk 0:00:05]}  Ra6 {[%clk 0:00:10]} 50. Rf4 {[%clk 0:00:05]}  Rb6+ {[%clk 0:00:10]} 51. Ka3 {[%clk 0:00:05]}  Rb1 {[%clk 0:00:07]} 52. Rxh4 {[%clk 0:00:05]}  e5 {[%clk 0:00:08]} 53. Rh5 {[%clk 0:00:05]}  Rf1 {[%clk 0:00:08]} 54. a5 {[%clk 0:00:03]}  Kc4 {[%clk 0:00:06]} 55. Kb2 {[%clk 0:00:03]}  Rf2+ {[%clk 0:00:05]} 56. Kb1 {[%clk 0:00:02]}  Kb3 {[%clk 0:00:05]} 57. Kc1 {[%clk 0:00:01]}  Kxc3 {[%clk 0:00:06]} 58. Kd1 {[%clk 0:00:02]}  e4 {[%clk 0:00:04]} 59. Ke1 {[%clk 0:00:02]}  Ra2 {[%clk 0:00:02]} 60. Rxf5 {[%clk 0:00:01]}  Kd4 {[%clk 0:00:03]} 61. Rf4 {[%clk 0:00:01]}  Ke3 {[%clk 0:00:02]} 62. Rf1 {[%clk 0:00:01]}  Ra1# {[%clk 0:00:02]} 0-1

[Event "November 21 Early 2023"]
[Site "https://www.chess.com"]
[Date "2023.11.21"]
[Round "2"]
[White "Puranik, Abhimanyu"]
[Black "gueraumasague"]
[Result "1-0"]
[Board "34"]
[TimeControl "180+1"]
[WhiteFideId "5061245"]
[WhiteElo "2493"]
[BlackElo "2587"]
[WhiteTeam "IND"]
[WhiteClock "0:00:25"]
[BlackClock "0:00:09"]

1. c4 {[%clk 0:03:00]}  g6 {[%clk 0:03:00]} 2. Nc3 {[%clk 0:03:00]}  Bg7 {[%clk 0:03:01]} 3. d4 {[%clk 0:03:00]}  Nf6 {[%clk 0:03:02]} 4. Nf3 {[%clk 0:02:57]}  d6 {[%clk 0:03:02]} 5. g3 {[%clk 0:02:56]}  Nc6 {[%clk 0:02:58]} 6. Bg2 {[%clk 0:02:57]}  Bf5 {[%clk 0:02:58]} 7. O-O {[%clk 0:02:56]}  Qc8 {[%clk 0:02:58]} 8. d5 {[%clk 0:02:54]}  Ne5 {[%clk 0:02:55]} 9. Nxe5 {[%clk 0:02:54]}  dxe5 {[%clk 0:02:56]} 10. e4 {[%clk 0:02:53]}  Bh3 {[%clk 0:02:56]} 11. Qa4+ {[%clk 0:02:49]}  Kf8 {[%clk 0:02:53]} 12. f3 {[%clk 0:02:38]}  h5 {[%clk 0:02:49]} 13. Bg5 {[%clk 0:02:37]}  Bxg2 {[%clk 0:02:36]} 14. Kxg2 {[%clk 0:02:37]}  h4 {[%clk 0:02:37]} 15. Rh1 {[%clk 0:02:09]}  Rh5 {[%clk 0:02:09]} 16. Be3 {[%clk 0:01:54]}  Kg8 {[%clk 0:01:26]} 17. Qd1 {[%clk 0:01:48]}  h3+ {[%clk 0:00:56]} 18. Kf2 {[%clk 0:01:47]}  c6 {[%clk 0:00:57]} 19. Qe2 {[%clk 0:01:44]}  e6 {[%clk 0:00:53]} 20. dxc6 {[%clk 0:01:33]}  Qxc6 {[%clk 0:00:50]} 21. Rhd1 {[%clk 0:01:31]}  a6 {[%clk 0:00:44]} 22. Rac1 {[%clk 0:01:22]}  Bf8 {[%clk 0:00:44]} 23. b3 {[%clk 0:01:12]}  Nd7 {[%clk 0:00:38]} 24. Rc2 {[%clk 0:01:10]}  Bc5 {[%clk 0:00:37]} 25. Rcd2 {[%clk 0:01:04]}  Nf6 {[%clk 0:00:18]} 26. Bxc5 {[%clk 0:00:59]}  Qxc5+ {[%clk 0:00:19]} 27. Qe3 {[%clk 0:00:59]}  Qxe3+ {[%clk 0:00:19]} 28. Kxe3 {[%clk 0:00:59]}  Kg7 {[%clk 0:00:20]} 29. Na4 {[%clk 0:00:52]}  g5 {[%clk 0:00:19]} 30. Nb6 {[%clk 0:00:49]}  Rb8 {[%clk 0:00:17]} 31. g4 {[%clk 0:00:49]}  Rhh8 {[%clk 0:00:18]} 32. c5 {[%clk 0:00:49]}  Kf8 {[%clk 0:00:17]} 33. b4 {[%clk 0:00:47]}  Ke7 {[%clk 0:00:17]} 34. a4 {[%clk 0:00:48]}  Rhd8 {[%clk 0:00:17]} 35. b5 {[%clk 0:00:44]}  Rxd2 {[%clk 0:00:15]} 36. Rxd2 {[%clk 0:00:45]}  Ke8 {[%clk 0:00:11]} 37. bxa6 {[%clk 0:00:30]}  bxa6 {[%clk 0:00:12]} 38. c6 {[%clk 0:00:29]}  Rxb6 {[%clk 0:00:12]} 39. c7 {[%clk 0:00:29]}  Rc6 {[%clk 0:00:12]} 40. Rd8+ {[%clk 0:00:29]}  Ke7 {[%clk 0:00:13]} 41. c8=Q {[%clk 0:00:30]}  Rxc8 {[%clk 0:00:14]} 42. Rxc8 {[%clk 0:00:30]}  Nd7 {[%clk 0:00:15]} 43. Rc6 {[%clk 0:00:26]}  a5 {[%clk 0:00:15]} 44. Ra6 {[%clk 0:00:26]}  Nc5 {[%clk 0:00:09]} 45. Rxa5 {[%clk 0:00:25]}  Nb3 {[%clk 0:00:10]} 46. Rb5 {[%clk 0:00:25]}  Nd4 {[%clk 0:00:10]} 47. Rb7+ {[%clk 0:00:25]}  Kf6 {[%clk 0:00:09]} 48. a5 {[%clk 0:00:25]} 1-0

[Event "November 21 Early 2023"]
[Site "https://www.chess.com"]
[Date "2023.11.21"]
[Round "2"]
[White "mind1mover"]
[Black "Manukyan, Sargis A."]
[Result "1/2-1/2"]
[Board "38"]
[TimeControl "180+1"]
[BlackFideId "13303970"]
[WhiteElo "2895"]
[BlackElo "2204"]
[BlackTeam "ARM"]
[WhiteClock "0:00:03"]
[BlackClock "0:00:48"]

1. Nf3 {[%clk 0:03:00]}  d5 {[%clk 0:02:59]} 2. b3 {[%clk 0:03:01]}  e6 {[%clk 0:03:00]} 3. Bb2 {[%clk 0:03:01]}  Nf6 {[%clk 0:03:01]} 4. g3 {[%clk 0:03:02]}  Be7 {[%clk 0:03:01]} 5. Bg2 {[%clk 0:03:03]}  O-O {[%clk 0:03:02]} 6. O-O {[%clk 0:03:03]}  c5 {[%clk 0:03:02]} 7. c4 {[%clk 0:03:02]}  d4 {[%clk 0:03:02]} 8. e3 {[%clk 0:03:02]}  Nc6 {[%clk 0:03:02]} 9. exd4 {[%clk 0:03:03]}  cxd4 {[%clk 0:03:03]} 10. Re1 {[%clk 0:03:01]}  Bc5 {[%clk 0:02:58]} 11. d3 {[%clk 0:02:56]}  Re8 {[%clk 0:02:58]} 12. a3 {[%clk 0:02:48]}  a5 {[%clk 0:02:57]} 13. Ne5 {[%clk 0:02:47]}  Nxe5 {[%clk 0:02:49]} 14. Rxe5 {[%clk 0:02:48]}  Bd6 {[%clk 0:02:50]} 15. Re1 {[%clk 0:02:24]}  e5 {[%clk 0:02:50]} 16. Nd2 {[%clk 0:02:24]}  Bf5 {[%clk 0:02:50]} 17. Qe2 {[%clk 0:01:57]}  Rb8 {[%clk 0:02:47]} 18. Ne4 {[%clk 0:01:39]}  Nxe4 {[%clk 0:02:43]} 19. Bxe4 {[%clk 0:01:39]}  Bxe4 {[%clk 0:02:41]} 20. Qxe4 {[%clk 0:01:39]}  Qb6 {[%clk 0:02:41]} 21. Rab1 {[%clk 0:01:38]}  Qc6 {[%clk 0:02:20]} 22. Bc1 {[%clk 0:01:12]}  Qxe4 {[%clk 0:02:14]} 23. Rxe4 {[%clk 0:01:06]}  b5 {[%clk 0:02:12]} 24. Bd2 {[%clk 0:00:55]}  bxc4 {[%clk 0:01:40]} 25. dxc4 {[%clk 0:00:55]}  f5 {[%clk 0:01:32]} 26. Ree1 {[%clk 0:00:53]}  Bc7 {[%clk 0:01:15]} 27. b4 {[%clk 0:00:49]}  e4 {[%clk 0:01:16]} 28. c5 {[%clk 0:00:30]}  axb4 {[%clk 0:01:10]} 29. axb4 {[%clk 0:00:21]}  Rb5 {[%clk 0:01:03]} 30. Ra1 {[%clk 0:00:21]}  Reb8 {[%clk 0:01:02]} 31. Ra7 {[%clk 0:00:20]}  R8b7 {[%clk 0:01:02]} 32. Rxb7 {[%clk 0:00:15]}  Rxb7 {[%clk 0:01:03]} 33. Rc1 {[%clk 0:00:06]}  h6 {[%clk 0:01:01]} 34. c6 {[%clk 0:00:06]}  Rb5 {[%clk 0:01:01]} 35. Bf4 {[%clk 0:00:06]}  Bb6 {[%clk 0:00:56]} 36. c7 {[%clk 0:00:05]}  Bxc7 {[%clk 0:00:56]} 37. Rxc7 {[%clk 0:00:06]}  Rxb4 {[%clk 0:00:55]} 38. Be5 {[%clk 0:00:06]}  g5 {[%clk 0:00:54]} 39. Rg7+ {[%clk 0:00:03]}  Kf8 {[%clk 0:00:55]} 40. Bd6+ {[%clk 0:00:03]}  Kxg7 {[%clk 0:00:55]} 41. Bxb4 {[%clk 0:00:04]}  Kf6 {[%clk 0:00:56]} 42. Bf8 {[%clk 0:00:03]}  Kg6 {[%clk 0:00:54]} 43. Bc5 {[%clk 0:00:02]}  d3 {[%clk 0:00:54]} 44. Kf1 {[%clk 0:00:03]}  f4 {[%clk 0:00:54]} 45. g4 {[%clk 0:00:03]}  h5 {[%clk 0:00:54]} 46. h3 {[%clk 0:00:02]}  hxg4 {[%clk 0:00:54]} 47. hxg4 {[%clk 0:00:03]}  Kf6 {[%clk 0:00:55]} 48. Bd4+ {[%clk 0:00:04]}  Kg6 {[%clk 0:00:55]} 49. Ke1 {[%clk 0:00:04]}  Kf7 {[%clk 0:00:54]} 50. Kd2 {[%clk 0:00:05]}  Ke6 {[%clk 0:00:55]} 51. Bb6 {[%clk 0:00:04]}  Kd5 {[%clk 0:00:54]} 52. Bd8 {[%clk 0:00:05]}  e3+ {[%clk 0:00:45]} 53. fxe3 {[%clk 0:00:05]}  fxe3+ {[%clk 0:00:46]} 54. Kxe3 {[%clk 0:00:05]}  d2 {[%clk 0:00:46]} 55. Kxd2 {[%clk 0:00:03]}  Ke4 {[%clk 0:00:47]} 56. Bxg5 {[%clk 0:00:03]}  Kf3 {[%clk 0:00:47]} 57. Be3 {[%clk 0:00:03]}  Kxg4 {[%clk 0:00:48]} 1/2-1/2